[Event "RUS-ch Men Blitz 2019"]
[Site "Sochi"]
[Date "2019.10.17"]
[Round "5.6"]
[White "Gutenev, Alexander"]
[Black "Pridorozhni, Aleksei"]
[Result "0-1"]
[ECO "C42"]
[WhiteElo "2469"]
[BlackElo "2599"]
[Annotator "ChessBase"]
[PlyCount "96"]
[EventDate "2019.10.17"]
[EventType "swiss"]
[EventCountry "RUS"]
[SourceTitle "playchess.com"]
[Source "ChessBase"]
[SourceQuality "1"]
[TimeControl "180+2"]

1. e4 {[%emt 0:00:00]} e5 {[%emt 0:00:02]} 2. Nf3 {[%emt 0:00:00]} Nf6 {[%emt 0:00:01]} 3. Nxe5 {[%emt 0:00:05]} d6 {[%emt 0:00:01]} 4. Nf3 {[%emt 0:00:01]} Nxe4 {[%emt 0:00:02]} 5. Nc3 {[%emt 0:00:01]} Nxc3 {[%emt 0:00:03]} 6. dxc3 {[%emt 0:00:01]} Nc6 {[%emt 0:00:05]} 7. Be3 {[%emt 0:00:10]} Be7 {[%emt 0:00:06]} 8. Qd2 {[%emt 0:00:01]} Be6 {[%emt 0:00:03]} 9. O-O-O {[%emt 0:00:06]} Qd7 {[%emt 0:00:09]} 10. Kb1 {[%emt 0:00:02]} Bf6 {[%emt 0:00:27]} 11. h4 {[%emt 0:00:25]} h6 {[%emt 0:00:03]} 12. g3 {[%emt 0:00:18]} a6 {[%emt 0:00:50]} 13. Bg2 {[%emt 0:00:14]} O-O-O {[%emt 0:00:02]} 14. Nd4 {[%emt 0:00:06]} Bxd4 {[%emt 0:00:06]} 15. Bxd4 {[%emt 0:00:12]} f6 {[%emt 0:00:01]} 16. Rde1 {[%emt 0:00:06]} Rhe8 {[%emt 0:00:15]} 17. b3 {[%emt 0:00:11]} Kb8 {[%emt 0:00:04]} 18. Re2 {[%emt 0:00:15]} Bg4 {[%emt 0:00:05]} 19. Rxe8 {[%emt 0:00:16]} Rxe8 {[%emt 0:00:01]} 20. Re1 {[%emt 0:00:11]} Ne5 {[%emt 0:00:12]} 21. f4 {[%emt 0:00:21]} Nf3 {[%emt 0:00:03]} 22. Rxe8+ {[%emt 0:00:12]} Qxe8 {[%emt 0:00:01]} 23. Bxf3 {[%emt 0:00:06]} Bxf3 {[%emt 0:00:01]} 24. Qe3 {[%emt 0:00:02]} Be4 {[%emt 0:00:02]} 25. Qd2 {[%emt 0:00:08]} c5 {[%emt 0:00:10]} 26. Bf2 {[%emt 0:00:03]} Kc7 {[%emt 0:00:01]} 27. c4 {[%emt 0:00:04]} Qg6 {[%emt 0:00:06]} 28. Kc1 {[%emt 0:00:03]} Qg4 {[%emt 0:00:03]} 29. Qe3 {[%emt 0:00:08]} Qf5 {[%emt 0:00:02]} 30. Qd2 {[%emt 0:00:01]} b6 {[%emt 0:00:07]} 31. a3 {[%emt 0:00:05]} a5 {[%emt 0:00:02]} 32. Be1 {[%emt 0:00:03]} Qh3 {[%emt 0:00:08]} 33. Qe2 {[%emt 0:00:04]} Qh1 {[%emt 0:00:02]} 34. Kb2 {[%emt 0:00:01]} f5 {[%emt 0:00:04]} 35. h5 {[%emt 0:00:04]} Kd7 {[%emt 0:00:05]} 36. Bc3 {[%emt 0:00:01]} Bf3 {[%emt 0:00:05]} 37. Qd2 {[%emt 0:00:02]} Qxh5 {[%emt 0:00:03]} 38. Bxg7 {[%emt 0:00:01]} Qg6 {[%emt 0:00:01]} 39. Bc3 {[%emt 0:00:01]} Qxg3 {[%emt 0:00:05]} 40. Qe3 {[%emt 0:00:02]} Qg4 {[%emt 0:00:02]} 41. Bd2 {[%emt 0:00:01]} Be4 {[%emt 0:00:02]} 42. Qf2 {[%emt 0:00:01]} h5 {[%emt 0:00:04]} 43. Be1 {[%emt 0:00:02]} Qd1 {[%emt 0:00:02]} 44. b4 {[%emt 0:00:02]} axb4 {[%emt 0:00:02]} 45. axb4 {[%emt 0:00:01]} h4 {[%emt 0:00:02]} 46. Bc3 {[%emt 0:00:05]} h3 {[%emt 0:00:02]} 47. bxc5 {[%emt 0:00:03]} bxc5 {[%emt 0:00:02]} 48. Qh2 {[%emt 0:00:03]} Qxc2+ {[%emt 0:00:01]} 0-1

[Event "RUS-ch Men Blitz 2019"]
[Site "Sochi"]
[Date "2019.10.17"]
[Round "5.7"]
[White "Bryakin, Mikhail"]
[Black "Khegay, Dmitriy"]
[Result "0-1"]
[ECO "A40"]
[WhiteElo "2440"]
[BlackElo "2509"]
[Annotator "ChessBase"]
[PlyCount "98"]
[EventDate "2019.10.17"]
[EventType "swiss"]
[EventCountry "RUS"]
[SourceTitle "playchess.com"]
[Source "ChessBase"]
[SourceQuality "1"]
[TimeControl "180+2"]

1. d4 {[%emt 0:00:00]} g6 {[%emt 0:00:01]} 2. c4 {[%emt 0:00:00]} Bg7 {[%emt 0:00:01]} 3. Nc3 c5 4. d5 {[%emt 0:00:01]} d6 {[%emt 0:00:01]} 5. e4 {[%emt 0:00:01]} e6 {[%emt 0:00:01]} 6. h3 {[%emt 0:00:01]} Ne7 {[%emt 0:00:01]} 7. Nf3 {[%emt 0:00:02]} a6 {[%emt 0:00:02]} 8. Bd3 {[%emt 0:00:01]} h6 {[%emt 0:00:02]} 9. O-O {[%emt 0:00:02]} g5 {[%emt 0:00:02]} 10. dxe6 {[%emt 0:00:10]} Bxe6 {[%emt 0:00:05]} 11. Nd5 {[%emt 0:00:06]} Nbc6 {[%emt 0:00:10]} 12. Rb1 {[%emt 0:00:01]} O-O {[%emt 0:00:16]} 13. a3 {[%emt 0:00:01]} f5 {[%emt 0:00:32]} 14. exf5 {[%emt 0:00:09]} Nxf5 {[%emt 0:00:07]} 15. b4 {[%emt 0:00:07]} cxb4 {[%emt 0:00:28]} 16. axb4 {[%emt 0:00:01]} Nfd4 {[%emt 0:00:11]} 17. Nxd4 {[%emt 0:00:02]} Nxd4 {[%emt 0:00:02]} 18. Be4 {[%emt 0:00:22]} Nc6 {[%emt 0:00:33]} 19. Bb2 {[%emt 0:00:07]} Ne5 {[%emt 0:00:01]} 20. c5 {[%emt 0:00:11]} dxc5 {[%emt 0:00:28]} 21. bxc5 {[%emt 0:00:01]} Rc8 {[%emt 0:00:01]} 22. Rc1 {[%emt 0:00:18]} g4 {[%emt 0:00:15]} 23. hxg4 {[%emt 0:00:06]} Nxg4 {[%emt 0:00:07]} 24. Bxg7 {[%emt 0:00:20]} Qh4 {[%emt 0:00:06]} 25. Be5 {[%emt 0:00:01]} Nxe5 {[%emt 0:00:01]} 26. f3 {[%emt 0:00:15]} Rcd8 {[%emt 0:00:06]} 27. Qd4 {[%emt 0:00:15]} Rxd5 {[%emt 0:00:01]} 28. Qb2 {[%emt 0:00:12]} Qg3 {[%emt 0:00:05]} 29. Bxd5 {[%emt 0:00:40]} Bxd5 {[%emt 0:00:01]} 30. Rc3 {[%emt 0:00:01]} Nxf3+ {[%emt 0:00:03]} 31. Rcxf3 {[%emt 0:00:05]} Rxf3 {[%emt 0:00:04]} 32. Rd1 {[%emt 0:00:08]} Rd3 {[%emt 0:00:02]} 33. Rxd3 Qxd3 {[%emt 0:00:01]} 34. Qe5 {[%emt 0:00:10]} Qe4 {[%emt 0:00:02]} 35. Qb8+ {[%emt 0:00:02]} Kg7 {[%emt 0:00:02]} 36. Qc7+ {[%emt 0:00:01]} Bf7 {[%emt 0:00:01]} 37. Qg3+ {[%emt 0:00:05]} Kh7 {[%emt 0:00:00]} 38. Qc7 {[%emt 0:00:02]} Qf5 {[%emt 0:00:02]} 39. Kh2 {[%emt 0:00:02]} Qh5+ {[%emt 0:00:02]} 40. Kg1 {[%emt 0:00:01]} Qd1+ {[%emt 0:00:03]} 41. Kh2 {[%emt 0:00:01]} Qd5 {[%emt 0:00:00]} 42. Kg1 {[%emt 0:00:03]} Kg7 {[%emt 0:00:03]} 43. Qg3+ {[%emt 0:00:01]} Bg6 {[%emt 0:00:00]} 44. Qc7+ {[%emt 0:00:01]} Qf7 {[%emt 0:00:01]} 45. Qd6 {[%emt 0:00:02]} a5 {[%emt 0:00:02]} 46. Qd4+ {[%emt 0:00:01]} Kh7 {[%emt 0:00:01]} 47. Qa4 {[%emt 0:00:02]} Qc7 {[%emt 0:00:00]} 48. Qd4 {[%emt 0:00:01]} a4 {[%emt 0:00:02]} 49. Qxa4 {[%emt 0:00:01]} Qxc5+ {[%emt 0:00:04] Qd7+} 0-1

[Event "RUS-ch Men Blitz 2019"]
[Site "Sochi"]
[Date "2019.10.17"]
[Round "5.10"]
[White "Korchmar, Vasiliy"]
[Black "Shimanov, Aleksandr"]
[Result "0-1"]
[ECO "E09"]
[WhiteElo "2432"]
[BlackElo "2587"]
[Annotator "RC"]
[PlyCount "96"]
[EventDate "2019.10.17"]
[EventType "swiss"]
[EventCountry "RUS"]
[SourceTitle "playchess.com"]
[Source "ChessBase"]
[SourceQuality "1"]
[TimeControl "180+2"]

1. d4 {[%emt 0:00:00]} Nf6 {[%emt 0:00:00]} 2. c4 {[%emt 0:00:00]} e6 {[%emt 0:00:01]} 3. g3 {[%emt 0:00:01]} d5 {[%emt 0:00:02]} 4. Bg2 {[%emt 0:00:01]} Be7 {[%emt 0:00:01]} 5. Nf3 {[%emt 0:00:01]} O-O {[%emt 0:00:02]} 6. O-O {[%emt 0:00:02]} Nbd7 {[%emt 0:00:01]} 7. Qc2 {[%emt 0:00:04]} c6 {[%emt 0:00:02]} 8. Nbd2 {[%emt 0:00:01]} b6 {[%emt 0:00:01]} 9. e4 {[%emt 0:00:02]} dxc4 {[%emt 0:00:01]} 10. Nxc4 {[%emt 0:00:01]} Bb7 {[%emt 0:00:01]} 11. Bg5 {[%emt 0:00:02]} b5 {[%emt 0:00:05]} 12. Ne3 {[%emt 0:00:29]} c5 {[%emt 0:00:23]} 13. e5 {[%emt 0:00:45]} Nd5 {[%emt 0:00:03]} 14. Bxe7 {[%emt 0:00:09]} Qxe7 {[%emt 0:00:01]} 15. h4 {[%emt 0:00:33]} h6 {[%emt 0:00:07]} 16. Nxd5 {[%emt 0:00:12]} Bxd5 {[%emt 0:00:01]} 17. dxc5 {[%emt 0:00:16]} Nxc5 {[%emt 0:00:02]} 18. Nd4 {[%emt 0:00:19]} Bxg2 {[%emt 0:00:06]} 19. Kxg2 {[%emt 0:00:01]} Qb7+ {[%emt 0:00:01]} 20. Kh2 {[%emt 0:00:07]} Rac8 {[%emt 0:00:11]} 21. Qe2 {[%emt 0:00:02]} a6 {[%emt 0:00:02]} 22. Rac1 {[%emt 0:00:01]} Rfd8 {[%emt 0:00:07]} 23. Nb3 {[%emt 0:00:09]} Na4 {[%emt 0:00:14]} 24. Rfd1 {[%emt 0:00:07]} Qb6 {[%emt 0:00:13]} 25. Rxc8 {[%emt 0:00:03]} Rxc8 {[%emt 0:00:01]} 26. Rd6 {[%emt 0:00:01]} Qb7 {[%emt 0:00:06]} 27. Qd2 {[%emt 0:00:03]} Qe4 {[%emt 0:00:06]} 28. Qd4 {[%emt 0:00:13]} Qxd4 {[%emt 0:00:12]} 29. Nxd4 {[%emt 0:00:01]} Nxb2 {[%emt 0:00:12]} 30. Rxa6 {[%emt 0:00:01]} Nd3 {[%emt 0:00:07]} 31. f4 {[%emt 0:00:08]} b4 {[%emt 0:00:32]} 32. Nb5 {[%emt 0:00:00]} Rc2+ {[%emt 0:00:04]} 33. Kg1 {[%emt 0:00:01]} h5 {[%emt 0:00:17]} 34. Nd6 {[%emt 0:00:02]} Rc7 {[%emt 0:00:08]} 35. Ra8+ {[%emt 0:00:03]} Kh7 {[%emt 0:00:01]} 36. Kg2 {[%emt 0:00:08]} Kg6 {[%emt 0:00:02]} 37. Kf3 {[%emt 0:00:00]} Rc3 {[%emt 0:00:05]} 38. Kg2 {[%emt 0:00:03]} Nc1 {[%emt 0:00:14]} 39. Ra7 {[%emt 0:00:02]} Rc2+ {[%emt 0:00:07]} 40. Kf3 {[%emt 0:00:03]} Rxa2 {[%emt 0:00:02]} 41. Rxf7 {[%emt 0:00:01]} Ra3+ {[%emt 0:00:02]} 42. Kg2 {[%emt 0:00:01]} b3 {[%emt 0:00:07]} 43. Rb7 {[%emt 0:00:02]} Nd3 {[%emt 0:00:02]} 44. Ne8 {[%emt 0:00:03]} b2 {[%emt 0:00:03]} 45. Rxg7+ {[%emt 0:00:02]} Kh6 {[%emt 0:00:02]} 46. Rb7 {[%emt 0:00:00]} Ra1 {[%emt 0:00:03]} 47. Nf6 {[%emt 0:00:03]} b1=Q {[%emt 0:00:05]} 48. Ng8+ {[%emt 0:00:01]} Kg6 {[%emt 0:00:01]} 0-1

[Event "RUS-ch Men Blitz 2019"]
[Site "Sochi"]
[Date "2019.10.17"]
[Round "5.11"]
[White "Smagin, Sergey"]
[Black "Lysyj, Igor"]
[Result "1/2-1/2"]
[ECO "C48"]
[WhiteElo "2551"]
[BlackElo "2596"]
[Annotator "RC"]
[PlyCount "54"]
[EventDate "2019.10.17"]
[EventType "swiss"]
[EventCountry "RUS"]
[SourceTitle "playchess.com"]
[Source "ChessBase"]
[SourceQuality "1"]
[TimeControl "180+2"]

1. e4 {[%emt 0:00:00]} e5 {[%emt 0:00:00]} 2. Nc3 {[%emt 0:00:01]} Nf6 {[%emt 0:00:00]} 3. Nf3 {[%emt 0:00:02]} Nc6 {[%emt 0:00:01]} 4. Bb5 {[%emt 0:00:01]} Nd4 {[%emt 0:00:03]} 5. Bc4 {[%emt 0:00:01]} Bc5 {[%emt 0:00:02]} 6. O-O {[%emt 0:00:04]} d6 {[%emt 0:00:05]} 7. h3 {[%emt 0:00:03]} a6 {[%emt 0:00:09]} 8. a4 {[%emt 0:00:09]} O-O {[%emt 0:00:09]} 9. d3 {[%emt 0:00:00]} h6 {[%emt 0:00:03]} 10. Nxd4 {[%emt 0:00:06]} Bxd4 {[%emt 0:00:04]} 11. Ne2 {[%emt 0:00:01]} Ba7 {[%emt 0:00:05]} 12. Ng3 {[%emt 0:00:01]} c6 {[%emt 0:00:04]} 13. Qe2 {[%emt 0:00:08]} d5 {[%emt 0:00:04]} 14. Bb3 {[%emt 0:00:01]} Re8 {[%emt 0:00:03]} 15. Be3 {[%emt 0:00:03]} Bxe3 {[%emt 0:00:25]} 16. fxe3 {[%emt 0:00:10]} Be6 {[%emt 0:00:05]} 17. exd5 {[%emt 0:00:07]} cxd5 {[%emt 0:00:09]} 18. Nf5 {[%emt 0:00:22]} Nh7 {[%emt 0:00:18]} 19. Rf2 {[%emt 0:00:14]} Nf8 {[%emt 0:00:08]} 20. Raf1 {[%emt 0:00:02]} Ng6 {[%emt 0:00:01]} 21. Qe1 {[%emt 0:00:41]} Qd7 {[%emt 0:00:08]} 22. a5 {[%emt 0:00:04]} Rad8 {[%emt 0:00:06]} 23. Qb4 {[%emt 0:00:03]} Qc7 {[%emt 0:00:05]} 24. Ba4 {[%emt 0:00:12]} Rf8 {[%emt 0:00:05]} 25. Bb3 {[%emt 0:00:16]} Rfe8 {[%emt 0:00:03]} 26. Ba4 {[%emt 0:00:01]} Rf8 {[%emt 0:00:02]} 27. Bb3 {[%emt 0:00:00]} Rfe8 {[%emt 0:00:05]} 1/2-1/2

[Event "RUS-ch Men Blitz 2019"]
[Site "Sochi"]
[Date "2019.10.17"]
[Round "5.12"]
[White "Yudin, Sergei"]
[Black "Utnasunov, Alexander"]
[Result "1-0"]
[ECO "B50"]
[WhiteElo "2497"]
[BlackElo "2442"]
[Annotator "ChessBase"]
[PlyCount "59"]
[EventDate "2019.10.17"]
[EventType "swiss"]
[EventCountry "RUS"]
[SourceTitle "playchess.com"]
[Source "ChessBase"]
[SourceQuality "1"]
[TimeControl "180+2"]

1. e4 {[%emt 0:00:00]} c5 {[%emt 0:00:00]} 2. Nf3 {[%emt 0:00:01]} d6 {[%emt 0:00:00]} 3. c3 {[%emt 0:00:01]} Nf6 {[%emt 0:00:01]} 4. h3 {[%emt 0:00:02]} e6 {[%emt 0:00:14]} 5. Bd3 {[%emt 0:00:03]} Be7 {[%emt 0:00:02]} 6. O-O {[%emt 0:00:02]} O-O {[%emt 0:00:01]} 7. Bc2 {[%emt 0:00:01]} Nc6 {[%emt 0:00:22]} 8. Re1 {[%emt 0:00:02]} b6 {[%emt 0:00:05]} 9. d3 {[%emt 0:00:10]} h6 {[%emt 0:00:09]} 10. Nbd2 {[%emt 0:00:02]} e5 {[%emt 0:00:03]} 11. a4 {[%emt 0:00:09]} Be6 {[%emt 0:00:02]} 12. Nc4 {[%emt 0:00:03]} Qc7 {[%emt 0:00:14]} 13. Bb3 {[%emt 0:00:07]} Rfe8 {[%emt 0:00:09]} 14. Ne3 {[%emt 0:00:03]} Bf8 {[%emt 0:00:03]} 15. Bxe6 {[%emt 0:00:39]} fxe6 {[%emt 0:00:03]} 16. Ng4 {[%emt 0:00:10]} Nxg4 {[%emt 0:00:17]} 17. hxg4 {[%emt 0:00:01]} Qf7 {[%emt 0:00:05]} 18. Be3 {[%emt 0:00:07]} d5 {[%emt 0:00:06]} 19. g5 {[%emt 0:00:06]} h5 {[%emt 0:00:04]} 20. Nh4 {[%emt 0:00:08]} g6 {[%emt 0:00:03]} 21. g4 {[%emt 0:00:01]} hxg4 {[%emt 0:00:13]} 22. Qxg4 {[%emt 0:00:02]} Bd6 {[%emt 0:00:03]} 23. Kg2 {[%emt 0:00:02]} Kg7 {[%emt 0:00:01]} 24. Rh1 {[%emt 0:00:04]} Rh8 {[%emt 0:00:01]} 25. Nf3 {[%emt 0:00:02]} Rxh1 {[%emt 0:00:21]} 26. Rxh1 {[%emt 0:00:02]} Rh8 {[%emt 0:00:01]} 27. Rh6 {[%emt 0:00:02]} Rh7 {[%emt 0:00:32]} 28. Qh3 {[%emt 0:00:07]} Qg8 {[%emt 0:00:01]} 29. Rxh7+ {[%emt 0:00:02]} Qxh7 {[%emt 0:00:06]} 30. Qxe6 {[%emt 0:00:02]} 1-0

[Event "RUS-ch Men Blitz 2019"]
[Site "Sochi"]
[Date "2019.10.17"]
[Round "5.13"]
[White "Ozgibcev, Anatoly"]
[Black "Timofeev, Artyom"]
[Result "1-0"]
[ECO "B22"]
[WhiteElo "2367"]
[BlackElo "2595"]
[Annotator "RC"]
[PlyCount "183"]
[EventDate "2019.10.17"]
[EventType "swiss"]
[EventCountry "RUS"]
[SourceTitle "playchess.com"]
[Source "ChessBase"]
[SourceQuality "1"]
[TimeControl "180+2"]

1. e4 {[%emt 0:00:01]} c5 {[%emt 0:00:00]} 2. c3 {[%emt 0:00:01]} d6 {[%emt 0:00:02]} 3. d4 {[%emt 0:00:01]} Nd7 {[%emt 0:00:01]} 4. Nf3 {[%emt 0:00:03]} g6 {[%emt 0:00:02]} 5. Bc4 {[%emt 0:00:10]} e6 {[%emt 0:00:14]} 6. O-O {[%emt 0:00:09]} Bg7 {[%emt 0:00:02]} 7. Bg5 {[%emt 0:00:21]} Qc7 {[%emt 0:00:08]} 8. dxc5 {[%emt 0:00:11]} Qxc5 {[%emt 0:00:08]} 9. Qe2 {[%emt 0:00:13]} Ngf6 {[%emt 0:00:03]} 10. Nbd2 {[%emt 0:00:09]} O-O {[%emt 0:00:04]} 11. Rfe1 {[%emt 0:00:12]} a6 {[%emt 0:00:07]} 12. a4 {[%emt 0:00:12]} b6 {[%emt 0:00:24]} 13. e5 {[%emt 0:00:30]} dxe5 {[%emt 0:00:07]} 14. Nxe5 {[%emt 0:00:02]} Nxe5 {[%emt 0:00:04]} 15. Qxe5 {[%emt 0:00:01]} Qxe5 {[%emt 0:00:02]} 16. Rxe5 {[%emt 0:00:01]} Bb7 {[%emt 0:00:01]} 17. Ree1 {[%emt 0:00:09]} Nd5 {[%emt 0:00:13]} 18. Ne4 {[%emt 0:00:12]} h6 {[%emt 0:00:51]} 19. Bh4 {[%emt 0:00:01]} g5 {[%emt 0:00:04]} 20. Bg3 {[%emt 0:00:01]} Bc6 {[%emt 0:00:04]} 21. f3 {[%emt 0:00:10]} Rfd8 {[%emt 0:00:03]} 22. Bf2 {[%emt 0:00:02]} b5 {[%emt 0:00:06]} 23. axb5 {[%emt 0:00:02]} axb5 {[%emt 0:00:01]} 24. Rxa8 {[%emt 0:00:03]} Rxa8 {[%emt 0:00:01]} 25. Bb3 {[%emt 0:00:03]} Nf4 {[%emt 0:00:02]} 26. Nc5 {[%emt 0:00:07]} Bf8 {[%emt 0:00:10]} 27. Rd1 {[%emt 0:00:05]} Rc8 {[%emt 0:00:01]} 28. Nd3 {[%emt 0:00:02]} Ng6 {[%emt 0:00:08]} 29. Bg3 {[%emt 0:00:04]} h5 {[%emt 0:00:09]} 30. h3 {[%emt 0:00:09]} Bg7 {[%emt 0:00:15]} 31. Nb4 {[%emt 0:00:05]} Be8 {[%emt 0:00:01]} 32. Nd3 {[%emt 0:00:05]} Kh7 {[%emt 0:00:06]} 33. Kh1 {[%emt 0:00:03]} Kh6 {[%emt 0:00:01]} 34. Bf2 {[%emt 0:00:03]} Bf6 {[%emt 0:00:06]} 35. Be3 {[%emt 0:00:01]} Kg7 {[%emt 0:00:00]} 36. Nf2 {[%emt 0:00:04]} Bc6 {[%emt 0:00:02]} 37. Bc2 {[%emt 0:00:02]} Ne5 {[%emt 0:00:01]} 38. Ne4 {[%emt 0:00:02]} Bxe4 {[%emt 0:00:01]} 39. Bxe4 {[%emt 0:00:01]} Nc4 {[%emt 0:00:01]} 40. Bc1 {[%emt 0:00:01]} Rb8 {[%emt 0:00:02]} 41. Bd3 {[%emt 0:00:04]} Ne5 {[%emt 0:00:01]} 42. Be2 {[%emt 0:00:02]} b4 {[%emt 0:00:01]} 43. Bd2 {[%emt 0:00:04]} bxc3 {[%emt 0:00:06]} 44. Bxc3 {[%emt 0:00:00]} Ng6 {[%emt 0:00:01]} 45. Bxf6+ {[%emt 0:00:06]} Kxf6 {[%emt 0:00:01]} 46. Rb1 {[%emt 0:00:01]} Rb4 {[%emt 0:00:01]} 47. b3 {[%emt 0:00:02]} h4 {[%emt 0:00:02]} 48. Kg1 {[%emt 0:00:01]} Nf4 {[%emt 0:00:03]} 49. Bc4 {[%emt 0:00:01]} Ke5 {[%emt 0:00:04]} 50. Kf2 {[%emt 0:00:02]} Rb8 {[%emt 0:00:02]} 51. b4 {[%emt 0:00:03]} Kd4 {[%emt 0:00:01]} 52. Bf1 {[%emt 0:00:01]} Nd5 {[%emt 0:00:06]} 53. b5 {[%emt 0:00:03]} Kc5 {[%emt 0:00:01]} 54. Rc1+ {[%emt 0:00:03]} Kd6 {[%emt 0:00:02]} 55. Rc6+ {[%emt 0:00:02]} Ke5 {[%emt 0:00:01]} 56. Rc2 {[%emt 0:00:03]} Ra8 {[%emt 0:00:01]} 57. Re2+ {[%emt 0:00:01]} Kd4 {[%emt 0:00:02]} 58. Rb2 {[%emt 0:00:02]} Kc3 {[%emt 0:00:01]} 59. Re2 {[%emt 0:00:01]} Ra5 {[%emt 0:00:05]} 60. Re4 {[%emt 0:00:02]} Ra2+ {[%emt 0:00:02]} 61. Kg1 {[%emt 0:00:01]} Nf4 {[%emt 0:00:02]} 62. Rc4+ {[%emt 0:00:02]} Kd2 {[%emt 0:00:02]} 63. Rd4+ {[%emt 0:00:02]} Kc3 {[%emt 0:00:08]} 64. Rc4+ {[%emt 0:00:00]} Kd2 {[%emt 0:00:02]} 65. Rd4+ {[%emt 0:00:10]} Kc3 {[%emt 0:00:01]} 66. Rc4+ {[%emt 0:00:00]} Kd2 {[%emt 0:00:02]} 67. Rd4+ {[%emt 0:00:01]} Kc1 {[%emt 0:00:02]} 68. Rc4+ {[%emt 0:00:01]} Kd1 {[%emt 0:00:03]} 69. Rd4+ {[%emt 0:00:01]} Kc2 {[%emt 0:00:01]} 70. Rc4+ {[%emt 0:00:01]} Kd2 {[%emt 0:00:03]} 71. Rd4+ {[%emt 0:00:01]} Kc3 {[%emt 0:00:01]} 72. Rc4+ {[%emt 0:00:01]} Kb3 {[%emt 0:00:01]} 73. b6 {[%emt 0:00:00]} Ra8 {[%emt 0:00:01]} 74. b7 {[%emt 0:00:03]} Rb8 {[%emt 0:00:01]} 75. Rc7 {[%emt 0:00:01]} Nd5 {[%emt 0:00:12]} 76. Rxf7 {[%emt 0:00:01]} Kc3 {[%emt 0:00:03]} 77. Be2 {[%emt 0:00:03]} Kd2 {[%emt 0:00:00]} 78. Ba6 {[%emt 0:00:01]} Nb4 {[%emt 0:00:01]} 79. Bb5 {[%emt 0:00:03]} Ke3 {[%emt 0:00:02]} 80. Re7 {[%emt 0:00:02]} Kf4 {[%emt 0:00:03]} 81. Bc4 {[%emt 0:00:02]} Nd5 {[%emt 0:00:02]} 82. Bxd5 {[%emt 0:00:02]} exd5 {[%emt 0:00:01]} 83. Kf2 {[%emt 0:00:01]} d4 {[%emt 0:00:01]} 84. Rg7 {[%emt 0:00:02]} d3 {[%emt 0:00:02]} 85. Ke1 {[%emt 0:00:02]} Re8+ {[%emt 0:00:05]} 86. Kd2 {[%emt 0:00:01]} Re2+ {[%emt 0:00:02]} 87. Kxd3 {[%emt 0:00:01]} Rb2 {[%emt 0:00:01]} 88. Kc3 {[%emt 0:00:02]} Rb6 {[%emt 0:00:00]} 89. Kc4 {[%emt 0:00:01]} Rb2 {[%emt 0:00:01]} 90. Kc5 {[%emt 0:00:00]} Ke3 {[%emt 0:00:02]} 91. Kc6 {[%emt 0:00:03]} Kf2 {[%emt 0:00:01]} 92. Rxg5 {[%emt 0:00:01]} 1-0

[Event "RUS-ch Men Blitz 2019"]
[Site "Sochi"]
[Date "2019.10.17"]
[Round "5.14"]
[White "Pogromsky, Mikhail"]
[Black "Kokarev, Dmitry"]
[Result "0-1"]
[ECO "E61"]
[WhiteElo "2411"]
[BlackElo "2593"]
[Annotator "ChessBase"]
[PlyCount "68"]
[EventDate "2019.10.17"]
[EventType "swiss"]
[EventCountry "RUS"]
[SourceTitle "playchess.com"]
[Source "ChessBase"]
[SourceQuality "1"]
[TimeControl "180+2"]

1. d4 {[%emt 0:00:00]} Nf6 {[%emt 0:00:00]} 2. c4 {[%emt 0:00:00]} g6 {[%emt 0:00:00]} 3. Nc3 {[%emt 0:00:00]} Bg7 {[%emt 0:00:01]} 4. Nf3 {[%emt 0:00:02]} O-O {[%emt 0:00:02]} 5. h3 {[%emt 0:00:00]} d6 {[%emt 0:00:06]} 6. Bg5 {[%emt 0:00:02]} c5 {[%emt 0:00:09]} 7. d5 {[%emt 0:00:01]} e6 {[%emt 0:00:03]} 8. e3 {[%emt 0:00:01]} h6 {[%emt 0:00:06]} 9. Bf4 {[%emt 0:00:06]} e5 {[%emt 0:00:02]} 10. Bh2 {[%emt 0:00:02]} Nh7 {[%emt 0:00:03]} 11. g4 {[%emt 0:00:13]} Na6 {[%emt 0:00:12]} 12. Be2 {[%emt 0:00:12]} Bd7 {[%emt 0:00:01]} 13. Rg1 {[%emt 0:00:06]} Ng5 {[%emt 0:00:18]} 14. Nxg5 {[%emt 0:00:14]} Qxg5 {[%emt 0:00:02]} 15. Bg3 {[%emt 0:00:07]} Qe7 {[%emt 0:00:02]} 16. e4 {[%emt 0:00:16]} Bf6 {[%emt 0:00:03]} 17. Qb3 {[%emt 0:00:08]} b6 {[%emt 0:00:24]} 18. O-O-O {[%emt 0:00:10]} Nc7 {[%emt 0:00:03]} 19. Nb5 {[%emt 0:00:04]} Nxb5 {[%emt 0:00:36]} 20. cxb5 {[%emt 0:00:01]} a6 {[%emt 0:00:01]} 21. a3 {[%emt 0:00:22]} Qe8 {[%emt 0:00:10]} 22. bxa6 {[%emt 0:00:26]} b5 {[%emt 0:00:01]} 23. a4 {[%emt 0:00:20]} bxa4 {[%emt 0:00:10]} 24. Qb6 {[%emt 0:00:05]} Qe7 {[%emt 0:00:07]} 25. Rh1 {[%emt 0:00:31]} Rfb8 {[%emt 0:00:02]} 26. Qa5 {[%emt 0:00:00]} Rb4 {[%emt 0:00:13]} 27. h4 {[%emt 0:00:08]} Rxe4 {[%emt 0:00:11]} 28. Bb5 {[%emt 0:00:06]} Rb4 {[%emt 0:00:20]} 29. Bc6 {[%emt 0:00:05]} Bxc6 {[%emt 0:00:01]} 30. dxc6 {[%emt 0:00:00]} Qe6 {[%emt 0:00:09]} 31. c7 {[%emt 0:00:08]} Qc4+ {[%emt 0:00:07]} 32. Kb1 {[%emt 0:00:02]} e4 {[%emt 0:00:02]} 33. Rd2 {[%emt 0:00:02]} e3 {[%emt 0:00:02]} 34. Rc2 {[%emt 0:00:03]} Qe4 {[%emt 0:00:02]} 0-1

[Event "RUS-ch Men Blitz 2019"]
[Site "Sochi"]
[Date "2019.10.17"]
[Round "5.16"]
[White "Khismatullin, Denis"]
[Black "Apryshko, Gleb"]
[Result "1-0"]
[ECO "A01"]
[WhiteElo "2611"]
[BlackElo "2382"]
[Annotator "RC"]
[PlyCount "53"]
[EventDate "2019.10.17"]
[EventType "swiss"]
[EventCountry "RUS"]
[SourceTitle "playchess.com"]
[Source "ChessBase"]
[SourceQuality "1"]
[TimeControl "180+2"]

1. b3 {[%emt 0:00:00]} d6 {[%emt 0:00:00]} 2. Bb2 {[%emt 0:00:00]} Nd7 {[%emt 0:00:00]} 3. d4 {[%emt 0:00:01]} Ngf6 {[%emt 0:00:00]} 4. Nc3 {[%emt 0:00:02]} g6 {[%emt 0:00:02]} 5. e3 {[%emt 0:00:01]} Bg7 {[%emt 0:00:01]} 6. g4 {[%emt 0:00:02]} e5 {[%emt 0:00:06]} 7. dxe5 {[%emt 0:00:03]} Nxe5 {[%emt 0:00:03]} 8. h3 {[%emt 0:00:02]} Bd7 {[%emt 0:00:36]} 9. Bg2 Bc6 10. Bxc6+ {[%emt 0:00:03]} Nxc6 {[%emt 0:00:05]} 11. Nge2 {[%emt 0:00:05]} h5 {[%emt 0:00:13]} 12. g5 {[%emt 0:00:33]} Ne4 {[%emt 0:00:00]} 13. h4 {[%emt 0:00:01]} Ne5 {[%emt 0:00:01]} 14. Qd5 {[%emt 0:00:20]} Nxc3 {[%emt 0:00:32]} 15. Bxc3 {[%emt 0:00:22]} c6 {[%emt 0:00:00]} 16. Qg2 {[%emt 0:00:02]} O-O {[%emt 0:00:03]} 17. O-O-O {[%emt 0:00:02]} Qe7 {[%emt 0:00:03]} 18. e4 {[%emt 0:00:17]} Rfe8 {[%emt 0:00:24]} 19. Rhe1 {[%emt 0:00:07]} Rad8 {[%emt 0:00:07]} 20. Qg3 {[%emt 0:00:24]} Qf8 {[%emt 0:00:26]} 21. f3 {[%emt 0:00:19]} Rd7 {[%emt 0:00:48]} 22. Kb1 {[%emt 0:00:02]} Red8 {[%emt 0:00:00]} 23. Rd2 {[%emt 0:00:40]} d5 {[%emt 0:00:02]} 24. Bxe5 {[%emt 0:00:03]} dxe4 {[%emt 0:00:11]} 25. Rxd7 {[%emt 0:00:01]} Rxd7 {[%emt 0:00:02]} 26. fxe4 {[%emt 0:00:02]} Qb4 {[%emt 0:00:02]} 27. Bxg7 {[%emt 0:00:09]} 1-0